bitfinex/quotes_ETHUSD_20241004
["timestamp","ask_amount","ask_price","bid_price","bid_amount"]
[1728042301429,1.82478854,2385.9,2385.7,4.19152]
[1728042301629,1.82478854,2385.9,2385.7,4.71100577]
[1728042301926,1.82478854,2385.9,2385.8,4.37431405]
[1728042306372,1.82478854,2385.9,2385.8,0.18285405]
[1728042306673,1.82478854,2385.9,2385.7,4.19159]
[1728042306859,1.82478854,2385.9,2385.8,0.18280431]
[1728042307234,1.82478854,2385.9,2385.7,4.19159]
[1728042307470,1.82478854,2385.9,2385.8,0.18280431]
[1728042307771,1.82478854,2385.9,2385.7,4.19159]
[1728042308151,1.82478854,2385.9,2385.8,0.18280431]
[1728042308334,1.82478854,2385.9,2385.7,4.19159]
[1728042308683,1.82478854,2385.9,2385.8,0.18280431]
[1728042309383,1.82478854,2385.9,2385.7,4.19159]
[1728042309559,1.82478854,2385.9,2385.8,0.18280431]
[1728042309874,1.82478854,2385.9,2385.7,4.19159]
[1728042310065,1.82478854,2385.9,2385.8,0.18268433]
[1728042310884,1.82478854,2385.9,2385.7,4.19159]
[1728042311081,1.82478854,2385.9,2385.8,0.18268725]
[1728042311484,1.82478854,2385.9,2385.7,4.19159]
[1728042311767,1.82478854,2385.9,2385.8,0.18268725]
[1728042312147,1.82478854,2385.9,2385.7,4.19159]
[1728042312547,1.82478854,2385.9,2385.8,0.18268725]
[1728042312762,1.82478854,2385.9,2385.7,4.19159]
[1728042312944,1.82478854,2385.9,2385.8,0.18268725]
[1728042313146,1.82478854,2385.9,2385.7,4.19159]
[1728042313443,1.82478854,2385.9,2385.8,0.18268725]
[1728042313646,1.82478854,2385.9,2385.7,4.19159]
[1728042313945,1.82478854,2385.9,2385.8,0.18268725]
[1728042314145,1.82478854,2385.9,2385.7,4.19159]
[1728042314369,1.82478854,2385.9,2385.8,0.18268725]
[1728042314582,1.82478854,2385.9,2385.7,4.19159]
[1728042314784,1.82478854,2385.9,2385.8,0.18268725]
[1728042314992,1.82478854,2385.9,2385.7,4.19159]
[1728042315146,1.82478854,2385.9,2385.8,0.18268725]
[1728042315350,7.20934239,2385.9,2385.8,0.18268725]
[1728042315546,7.20934239,2385.9,2385.8,0.18269018]
[1728042315873,7.20934239,2385.9,2385.5,7.19186]
[1728042316043,1.82478854,2385.7,2385.6,4.19181]
[1728042317093,1.82478854,2385.7,2385.6,4.37473702]
[1728042317461,1.82478854,2385.7,2385.6,5.13973702]
[1728042317663,1.82478854,2385.9,2385.7,4.19154]
[1728042318055,1.82478854,2385.9,2385.8,0.18270481]
[1728042318580,1.82478854,2385.9,2385.7,4.19154]
[1728042318786,1.82478854,2385.9,2385.8,0.18270481]
[1728042318949,1.82478854,2385.9,2385.7,4.19154]
[1728042319153,1.82478854,2385.9,2385.8,0.18270481]
[1728042319401,0.5379,2386.2,2386.0,4.19105]
[1728042319693,2.36268854,2386.2,2386.0,4.19108]
[1728042319989,1.82478854,2386.2,2386.1,0.18237156]
[1728042323110,6.01554854,2386.2,2386.1,0.18237156]
[1728042323251,0.5379,2386.1,2385.8,4.19143]
[1728042323457,1.82478854,2386.0,2385.8,4.19143]
[1728042323991,1.82478854,2386.0,2385.9,4.19129]
[1728042325536,1.82478854,2386.1,2386.0,4.191]
[1728042325827,1.82478854,2386.1,2386.0,4.9645]
[1728042328454,1.82478854,2386.1,2386.0,4.191]
[1728042330326,1.82478854,2386.1,2385.9,5.107562]
[1728042330694,1.82478854,2386.1,2386.0,4.19111]
[1728042331094,1.82478854,2386.1,2385.9,5.107562]
[1728042331593,1.82478854,2386.1,2385.9,9.298762]
[1728042331792,1.82478854,2386.1,2386.0,4.4146601]
[1728042333641,1.82478854,2386.1,2386.0,0.2235501]
[1728042333868,7.8479,2386.5,2386.3,4.19052]
[1728042334015,1.82478854,2386.6,2386.3,9.16543]
[1728042334204,0.5379,2386.7,2386.4,4.41335307]
[1728042334502,0.5379,2386.7,2386.5,4.19016]
[1728042334503,1.82478854,2386.7,2386.5,4.19016]
[1728042334935,1.82478854,2386.7,2386.6,0.22286754]
[1728042335605,1.82478854,2386.7,2386.6,4.41292754]
[1728042336040,1.82478854,2386.7,2386.6,5.23102754]
[1728042336213,7.31,2387.0,2386.7,4.18981]
[1728042336214,1.82478854,2386.9,2386.7,4.18981]
[1728042336835,1.82478854,2386.9,2386.8,0.22251922]
[1728042337040,1.82478854,2386.9,2386.6,9.19811]
[1728042337240,1.82478854,2386.9,2386.8,0.22251922]
[1728042337447,1.82478854,2386.9,2386.6,5.00805]
[1728042337649,1.82478854,2386.9,2386.8,0.22251922]
[1728042337940,1.82478854,2386.9,2386.6,9.19802]
[1728042338148,1.82478854,2386.9,2386.8,0.22251922]
[1728042338346,1.82478854,2386.9,2386.7,4.41249196]
[1728042338505,1.82478854,2386.9,2386.8,0.22251922]
[1728042338832,1.82478854,2386.9,2386.7,4.18986]
[1728042339044,1.82478854,2386.9,2386.8,0.22251922]
[1728042339728,1.82478854,2386.9,2386.6,5.00805]
[1728042339939,1.82478854,2386.9,2386.7,4.1898]
[1728042340335,1.82478854,2386.9,2386.7,8.37958]
[1728042340858,1.82478854,2386.9,2386.8,4.18971]
[1728042344847,1.82478854,2386.9,2386.7,4.18977]
[1728042345956,1.82478854,2386.9,2386.8,4.18971]
[1728042346114,1.82478854,2386.9,2386.8,5.1595485]
[1728042346957,1.82478854,2386.9,2386.8,1.19212962]
[1728042347662,1.82478854,2386.9,2386.8,5.38183962]
[1728042348740,1.19488035,2387.3,2387.0,4.18924]
[1728042349063,1.82478854,2387.2,2387.0,4.18924]
[1728042349224,1.82478854,2387.2,2387.1,0.22195295]
[1728042350641,1.82478854,2387.2,2386.9,5.00419]
[1728042350847,4.72674,2387.3,2386.9,5.00419]
[1728042350848,1.82478854,2387.0,2386.9,5.00419]
[1728042352270,1.82478854,2387.0,2386.9,4.18949]
[1728042352572,1.82478854,2387.0,2386.7,5.01178]
[1728042352869,1.82478854,2386.8,2386.7,8.01178]
[1728042353070,1.82478854,2386.8,2386.7,7.18988]
[1728042353567,1.82478854,2386.8,2386.7,8.410599]
[1728042355172,1.82478854,2387.0,2386.8,4.96072]
[1728042355735,1.82478854,2387.0,2386.8,0.7711]
[1728042356031,1.82478854,2387.0,2386.7,8.410569]
[1728042356479,1.82478854,2387.0,2386.7,7.18985]
[1728042356980,1.82478854,2386.8,2386.7,3.0]
[1728042358323,1.82478854,2386.8,2386.6,0.8248]
[1728042358529,1.82478854,2386.8,2386.6,4.18999]
[1728042359024,1.82478854,2386.8,2386.6,4.18995]
[1728042359227,1.82478854,2386.8,2386.6,4.18993]
[1728042361971,1.82478854,2386.8,2386.7,4.4121523]
[1728042363560,1.82478854,2386.8,2386.7,0.2222723]
[1728042363867,1.82478854,2386.8,2386.6,4.19003]
[1728042364187,1.82478854,2386.8,2386.7,0.22230153]
[1728042365459,1.82478854,2386.8,2386.5,7.19009]
[1728042365659,1.82478854,2386.8,2386.7,0.22230153]
[1728042365876,1.82478854,2386.8,2386.5,3.0]
[1728042366079,1.82478854,2386.8,2386.7,0.22230153]
[1728042366281,1.82478854,2386.8,2386.5,7.19012]
[1728042366489,1.82478854,2386.8,2386.7,0.22230153]
[1728042366703,1.82478854,2386.8,2386.5,7.19012]
[1728042366902,1.82478854,2386.8,2386.7,0.22230153]
[1728042367060,1.82478854,2386.8,2386.6,0.22242305]
[1728042367393,1.82478854,2386.8,2386.5,7.19012]
[1728042367605,1.82478854,2386.8,2386.7,0.2223103]
[1728042367901,1.82478854,2386.8,2386.6,0.22242305]
[1728042368197,1.82478854,2386.8,2386.7,0.2223103]
[1728042368361,1.82478854,2386.8,2386.5,7.19012]
[1728042368791,1.82478854,2386.8,2386.6,0.22242305]
[1728042369094,3.82478854,2386.8,2386.6,0.22242305]
[1728042372810,8.01450854,2386.8,2386.6,0.22242305]
[1728042373386,3.82478854,2386.8,2386.6,0.22242305]
[1728042377672,2.0,2386.8,2386.7,0.7574]
[1728042377916,2.0,2386.8,2386.7,0.97975413]
[1728042378976,3.82478854,2386.8,2386.7,0.97975413]
[1728042379512,3.82478854,2386.8,2386.7,0.22235413]
[1728042381112,2.0,2386.8,2386.7,6.41702454]
[1728042381436,2.0,2386.8,2386.7,11.43878184]
[1728042381614,2.0,2386.8,2386.7,11.87733292]
[1728042381797,2.0,2386.8,2386.7,10.56167967]
[1728042382117,2.0,2386.8,2386.7,12.31588401]
[1728042382278,2.0,2386.8,2386.7,10.56167967]
[1728042382476,2.0,2386.8,2386.7,12.31268005]
[1728042382696,2.0,2386.8,2386.7,11.58832492]
[1728042382898,2.0,2386.8,2386.7,12.31195305]
[1728042383082,2.0,2386.8,2386.7,12.31192594]
[1728042383975,2.0,2386.8,2386.7,10.56092556]
[1728042384375,2.0,2386.8,2386.7,12.31034472]
[1728042385476,2.0,2386.8,2386.7,12.30973737]
[1728042385928,2.0,2386.8,2386.7,9.83732454]
[1728042386119,2.0,2386.8,2386.7,10.5598807]
[1728042386415,2.0,2386.8,2386.7,12.30822182]
[1728042386714,2.0,2386.8,2386.7,10.90592734]
[1728042386887,0.99743328,2386.8,2386.7,10.90592734]
[1728042387215,1.82478854,2387.9,2387.5,4.99162]
[1728042387785,4.72543,2388.1,2387.6,0.22098014]
[1728042388115,1.82478854,2387.9,2387.6,4.40927014]
[1728042389620,1.82478854,2387.9,2387.6,0.22098014]
[1728042391619,1.5958,2388.1,2387.7,3.0]
[1728042391835,1.0579,2388.1,2387.8,5.01505]
[1728042392175,1.0579,2388.1,2387.9,0.22032365]
[1728042392721,1.0579,2388.1,2387.9,4.40802365]
[1728042392882,1.0579,2388.1,2388.0,4.1876]
[1728042393225,1.0579,2388.1,2388.0,4.40781102]
[1728042394179,1.0579,2388.1,2388.0,5.16291102]
[1728042394381,1.0579,2388.1,2388.0,9.51827212]
[1728042408211,1.0579,2388.1,2388.0,5.34287212]
[1728042408561,1.0579,2388.1,2388.0,4.40781102]
[1728042409411,1.0579,2388.1,2388.0,4.82811102]
[1728042409747,1.0579,2388.1,2388.0,7.82811102]
[1728042426528,1.0579,2388.1,2388.0,8.63251102]
[1728042430728,1.0579,2388.1,2388.0,9.49903013]
[1728042430937,1.0579,2388.1,2388.0,10.37863481]
[1728042431551,1.0579,2388.1,2388.0,11.24515392]
[1728042432524,1.0579,2388.1,2388.0,11.24953701]
[1728042432856,1.0579,2388.1,2388.0,10.37863481]
[1728042433562,1.0579,2388.1,2388.0,11.67841348]
[1728042436567,1.0579,2388.1,2388.0,10.37863481]
[1728042437141,1.0579,2388.1,2388.0,11.68706597]
[1728042437553,1.0579,2388.1,2388.0,12.11167304]
[1728042439568,1.0579,2388.1,2388.0,10.37863481]
[1728042440427,1.0579,2388.1,2388.0,12.55779925]
[1728042442082,1.0579,2388.1,2388.0,10.72415099]
[1728042443884,1.0579,2388.1,2388.0,10.37863481]
[1728042444041,1.0579,2388.1,2388.0,10.72420702]
[1728042447997,1.0579,2388.1,2388.0,12.1027899]
[1728042448156,1.0579,2388.1,2388.0,6.57493892]
[1728042448355,1.0579,2388.1,2388.0,6.13844787]
[1728042448549,1.0579,2388.1,2388.0,4.82811102]
[1728042448795,1.0579,2388.1,2388.0,6.13844787]
[1728042449133,1.0579,2388.1,2388.0,5.70174046]
[1728042449721,1.0579,2388.1,2388.0,8.70174046]
[1728042450590,1.0579,2388.1,2388.0,10.73311239]
[1728042451422,1.0579,2388.1,2388.0,9.42277554]
[1728042451838,1.0579,2388.1,2388.0,10.29655873]
[1728042452042,1.0579,2388.1,2388.0,10.73311239]
[1728042452201,1.0579,2388.1,2388.0,9.42277554]
[1728042453501,1.0579,2388.1,2388.0,10.73311239]
[1728042454646,1.0579,2388.1,2388.0,11.89189569]
[1728042454937,1.0579,2388.1,2388.0,10.14506779]
[1728042455144,1.0579,2388.1,2388.0,11.4558367]
[1728042457142,1.0579,2388.1,2388.0,10.73354445]
[1728042457372,1.0579,2388.1,2388.0,10.14515045]
[1728042457796,1.0579,2388.1,2388.0,11.45591936]
[1728042457946,1.0579,2388.1,2388.0,10.14515045]
[1728042458147,1.0579,2388.1,2388.0,11.45591936]
[1728042460602,1.0579,2388.1,2388.0,10.14515045]
[1728042460783,1.0579,2388.1,2388.0,11.45591936]
[1728042460988,1.0579,2388.1,2388.0,10.73354445]
[1728042461194,1.0579,2388.1,2388.0,11.45581211]
[1728042461559,1.0579,2388.1,2388.0,10.1450432]
[1728042461805,1.0579,2388.1,2388.0,11.45581211]
[1728042462593,1.0579,2388.1,2388.0,10.1450432]
[1728042462965,1.0579,2388.1,2388.0,11.45637832]
[1728042463304,1.0579,2388.1,2388.0,10.73411066]
[1728042464577,1.0579,2388.1,2388.0,11.45655122]
[1728042465102,1.0579,2388.1,2388.0,10.1452161]
[1728042465916,1.0579,2388.1,2388.0,9.42277554]
[1728042466197,1.0579,2388.1,2388.0,10.14519324]
[1728042466403,1.0579,2388.1,2388.0,9.42277554]
[1728042472512,1.0579,2388.1,2388.0,10.3252069]
[1728042473099,1.0579,2388.1,2388.0,10.32520401]
[1728042473513,1.0579,2388.1,2388.0,9.42277554]
[1728042475300,1.0579,2388.1,2388.0,11.18548304]
[1728042475640,1.0579,2388.1,2388.0,9.87414792]
[1728042475827,1.0579,2388.1,2388.0,11.18548304]
[1728042476628,1.0579,2388.1,2388.0,9.87414792]
[1728042476993,1.0579,2388.1,2388.0,11.18548304]
[1728042477297,1.0579,2388.1,2388.0,9.87414792]
[1728042477497,1.0579,2388.1,2388.0,11.18548304]
[1728042478312,1.0579,2388.1,2388.0,9.87414792]
[1728042478517,1.0579,2388.1,2388.0,10.74767666]
[1728042478875,1.0579,2388.1,2388.0,9.87414792]
[1728042479039,1.0579,2388.1,2388.0,10.74767683]
[1728042479248,1.0579,2388.1,2388.0,9.87414792]
[1728042479457,1.0579,2388.1,2388.0,10.74767545]
[1728042479744,1.0579,2388.1,2388.0,9.87414792]
[1728042479941,1.0579,2388.1,2388.0,11.18548304]
[1728042480253,1.0579,2388.1,2388.0,9.87414792]
[1728042480417,1.0579,2388.1,2388.0,10.74767926]
[1728042480739,1.0579,2388.1,2388.0,11.18548304]
[1728042482338,1.0579,2388.1,2388.0,9.87414792]
[1728042483762,1.0579,2388.1,2388.0,10.74780117]
[1728042484055,1.0579,2388.1,2388.0,9.87414792]
[1728042484352,1.0579,2388.1,2388.0,10.74781359]
[1728042484715,1.0579,2388.1,2388.0,11.18548304]
[1728042485155,1.0579,2388.1,2388.0,9.87414792]
[1728042485550,1.0579,2388.1,2388.0,11.18548304]
[1728042486040,1.0579,2388.1,2388.0,9.87414792]
[1728042486235,1.0579,2388.1,2388.0,11.18548304]
[1728042486557,1.0579,2388.1,2388.0,9.42277554]
[1728042486857,1.0579,2388.1,2388.0,11.18591888]
[1728042487014,1.0579,2388.1,2388.0,9.87458376]
[1728042488012,1.0579,2388.1,2388.0,10.74833927]
[1728042488214,1.0579,2388.1,2388.0,9.87458376]
[1728042488415,1.0579,2388.1,2388.0,11.18591888]
[1728042490684,1.0579,2388.1,2388.0,9.59125436]
[1728042493251,1.0579,2388.1,2388.0,10.02836606]
[1728042493421,1.0579,2388.1,2388.0,10.02836804]
[1728042494868,1.5958,2388.1,2388.0,1.54749308]
[1728042495177,1.5958,2388.1,2388.0,5.73509308]
[1728042495375,1.5958,2388.1,2388.0,7.85962122]
[1728042495674,1.5958,2388.1,2388.0,8.73509308]
[1728042495851,1.5958,2388.1,2388.0,7.85962122]
[1728042497140,1.5958,2388.1,2388.0,7.85973321]
[1728042497890,1.5958,2388.1,2388.0,8.73520507]
[1728042498249,1.5958,2388.1,2388.0,7.85973321]
[1728042498583,1.5958,2388.1,2388.0,8.73520507]
[1728042499281,1.5958,2388.1,2388.0,7.85973321]
[1728042499982,1.5958,2388.1,2388.0,8.73520507]
[1728042500187,1.0579,2388.1,2388.0,8.73520507]
[1728042500398,1.0579,2388.1,2388.0,10.33363856]
[1728042500749,1.0579,2388.1,2388.0,8.73520507]
[1728042500953,1.5958,2388.1,2388.0,8.73520507]
[1728042501153,1.5958,2388.1,2388.0,7.85973321]
[1728042501552,1.5958,2388.1,2388.0,8.73520507]
[1728042502489,1.5958,2388.1,2388.0,7.85973321]
[1728042503182,1.5958,2388.1,2388.0,8.73520507]
[1728042503561,1.5958,2388.1,2388.0,7.85973321]
[1728042503861,1.5958,2388.1,2388.0,7.40781102]
[1728042504196,1.5958,2388.1,2388.0,8.73534119]
[1728042504411,1.5958,2388.1,2388.0,7.40781102]
[1728042504601,1.0579,2388.1,2388.0,10.15571968]
[1728042505092,1.0579,2388.1,2388.0,10.57551968]
[1728042506296,1.0579,2388.1,2388.0,9.15514309]
[1728042507260,1.0579,2388.1,2388.0,9.59262425]
[1728042507481,1.0579,2388.1,2388.0,9.5925602]
[1728042509156,1.0579,2388.1,2388.0,10.3817602]
[1728042509496,1.0579,2388.1,2388.0,10.817254]
[1728042509702,1.0579,2388.1,2388.0,13.15838047]
[1728042510257,1.0579,2388.1,2388.0,10.97056589]
[1728042510892,1.0579,2388.1,2388.0,10.51856973]
[1728042511313,1.0579,2388.1,2388.0,10.97047445]
[1728042511599,1.0579,2388.1,2388.0,12.7203188]
[1728042512354,1.0579,2388.1,2388.0,10.18127445]
[1728042513015,1.0579,2388.1,2388.0,11.9311188]
[1728042513225,1.0579,2388.1,2388.0,10.18127445]
[1728042513715,1.0579,2388.1,2388.0,11.9311188]
[1728042514180,1.0579,2388.1,2388.0,11.49399023]
[1728042514383,1.0579,2388.1,2388.0,11.04209348]
[1728042515076,1.0579,2388.1,2388.0,11.49406799]
[1728042517706,1.0579,2388.1,2388.0,10.99544424]
[1728042517883,1.0579,2388.1,2388.0,10.54346973]
[1728042518084,1.0579,2388.1,2388.0,10.99542855]
[1728042518326,1.0579,2388.1,2388.0,12.7452729]
[1728042521128,1.0579,2388.1,2388.0,10.99542855]
[1728042521309,1.0579,2388.1,2388.0,11.49414346]
[1728042523197,0.995955,2388.1,2388.0,11.49414346]
[1728042523400,0.995955,2388.1,2388.0,12.27644346]
[1728042523838,0.5379,2388.4,2388.1,7.60706]
[1728042523989,0.5379,2388.4,2388.3,3.0]
[1728042524188,0.5379,2388.4,2388.3,3.671169]
[1728042524389,0.5379,2388.4,2388.3,3.21920972]
[1728042524835,0.5379,2388.4,2388.3,3.67120094]
[1728042524999,0.5379,2388.4,2388.3,3.67120251]
[1728042525000,1.5339,2388.4,2388.3,3.67120251]
[1728042525192,1.5339,2388.4,2388.3,3.21920972]
[1728042528888,1.5339,2388.4,2388.3,7.40627972]
[1728042529801,1.5339,2388.4,2388.3,0.21920972]
[1728042530015,1.5339,2388.4,2388.2,13.4771131]
[1728042530213,0.996,2388.4,2388.3,8.92724897]
[1728042530941,0.996,2388.4,2388.3,9.80241523]
[1728042531235,0.996,2388.4,2388.3,8.92724897]
[1728042531387,0.996,2388.4,2388.3,7.40627972]
[1728042531813,0.996,2388.4,2388.3,3.21920972]
[1728042533504,1.5339,2388.4,2388.3,3.21920972]
[1728042534028,1.5339,2388.4,2388.3,7.40627972]
[1728042538327,0.996,2388.4,2388.3,8.70124598]
[1728042538532,0.996,2388.4,2388.3,10.12136551]
[1728042539232,0.996,2388.4,2388.3,9.24619925]
[1728042539636,0.996,2388.4,2388.3,10.12136551]
[1728042540630,0.996,2388.4,2388.3,10.94156551]
[1728042540830,0.996,2388.4,2388.3,11.3791786]
[1728042541032,0.996,2388.4,2388.3,10.06639925]
[1728042541209,0.996,2388.4,2388.3,11.37802468]
[1728042542840,0.996,2388.4,2388.3,11.8162436]
[1728042543133,0.996,2388.4,2388.3,12.25363173]
[1728042543493,0.996,2388.4,2388.3,11.81464774]
[1728042547233,0.996,2388.4,2388.3,10.06639925]
[1728042547448,0.996,2388.4,2388.3,12.76691924]
[1728042547629,0.996,2388.4,2388.3,10.41216656]
[1728042547805,0.996,2388.4,2388.3,10.84431603]
[1728042548141,0.996,2388.4,2388.3,10.41216656]
[1728042548634,0.996,2388.4,2388.3,12.59539964]
[1728042548843,0.996,2388.4,2388.3,10.41216656]
[1728042549222,0.996,2388.4,2388.3,12.59491356]
[1728042550570,0.996,2388.4,2388.3,12.24914625]
[1728042550813,0.996,2388.4,2388.3,12.74673361]
[1728042551082,0.996,2388.4,2388.3,12.74644517]
[1728042551429,0.996,2388.4,2388.3,12.40082095]
[1728042551656,0.996,2388.4,2388.3,12.24885781]
[1728042551857,0.996,2388.4,2388.3,10.06639925]
[1728042552058,0.996,2388.4,2388.3,11.81243701]
[1728042552269,0.996,2388.4,2388.3,11.37611054]
[1728042554789,1.5339,2388.4,2388.3,4.82607972]
[1728042555085,0.996,2388.4,2388.3,4.82607972]
[1728042555871,0.996,2388.4,2388.3,5.69953443]
[1728042556078,0.996,2388.4,2388.3,8.69953443]
[1728042556381,0.996,2388.4,2388.3,10.37883486]
[1728042572898,0.996,2388.4,2388.3,10.81509144]
[1728042573101,0.996,2388.4,2388.3,12.4866707]
[1728042573327,0.996,2388.4,2388.3,14.74778571]
[1728042576786,0.996,2388.4,2388.3,13.84400645]
[1728042576959,0.996,2388.4,2388.3,14.7476489]
[1728042578607,0.996,2388.4,2388.3,12.92286036]
[1728042578775,0.996,2388.4,2388.3,12.15506036]
[1728042580064,0.996,2388.4,2388.3,12.15540558]
[1728042583311,0.996,2388.4,2388.3,10.40936782]
[1728042583516,0.996,2388.4,2388.3,9.50538015]
[1728042583665,0.996,2388.4,2388.3,12.15925306]
[1728042584065,0.996,2388.4,2388.3,12.15927788]
[1728042584422,0.996,2388.4,2388.3,10.40979753]
[1728042584592,0.996,2388.4,2388.3,12.59635356]
[1728042584912,0.996,2388.4,2388.3,11.2550636]
[1728042585120,0.996,2388.4,2388.3,12.59631189]
[1728042585321,0.996,2388.4,2388.3,15.23590043]
[1728042585617,0.996,2388.4,2388.3,15.58216762]
[1728042586670,0.996,2388.4,2388.3,12.49123588]
[1728042586873,0.996,2388.4,2388.3,15.58239962]
[1728042587179,0.996,2388.4,2388.3,15.58238226]
[1728042588851,0.996,2388.4,2388.3,13.39546598]
[1728042589009,0.996,2388.4,2388.3,15.58237334]
[1728042590220,0.996,2388.4,2388.3,15.2360897]
[1728042590418,0.996,2388.4,2388.3,15.58235087]
[1728042590949,0.996,2388.4,2388.3,13.82825077]
[1728042591506,0.996,2388.4,2388.3,13.39544351]
[1728042593456,0.996,2388.4,2388.3,12.49122986]
[1728042593662,0.996,2388.4,2388.3,13.04894795]
[1728042593949,0.996,2388.4,2388.3,13.39515067]
[1728042596232,0.996,2388.4,2388.3,16.4518403]
[1728042597020,0.996,2388.4,2388.3,13.82794109]
[1728042597845,0.996,2388.4,2388.3,16.4518403]
[1728042598034,0.996,2388.4,2388.3,17.17500015]
[1728042600053,0.996,2388.4,2388.3,15.11516813]
[1728042600254,0.996,2388.4,2388.3,13.77124097]
[1728042600432,0.996,2388.4,2388.3,16.82781041]
[1728042600769,0.996,2388.4,2388.3,15.75705294]
[1728042600952,0.996,2388.4,2388.3,18.53580019]
[1728042601268,0.996,2388.4,2388.3,15.91341641]
[1728042601425,0.747,2388.4,2388.3,15.49384954]
[1728042601619,0.44353125,2388.4,2388.3,15.49384954]
[1728042601824,0.44353125,2388.4,2388.3,15.49386845]
[1728042602069,0.6535492,2389.1,2389.0,7.60565]
[1728042602225,0.6535492,2389.1,2389.0,9.20240993]
[1728042602421,0.6535492,2389.1,2389.0,9.41325213]
[1728042603263,1.0970492,2389.1,2389.0,9.41325213]
[1728042603472,1.0970492,2389.1,2389.0,11.26112229]
[1728042603773,1.0970492,2389.1,2389.0,10.53875581]
[1728042604070,1.0970492,2389.1,2389.0,8.69046445]
[1728042604225,1.0970492,2389.1,2389.0,7.8164922]
[1728042604431,2.92183774,2389.1,2389.0,7.8164922]
[1728042605462,1.0970492,2389.1,2389.0,7.8164922]
[1728042611741,1.0970492,2389.1,2389.0,8.69046445]
[1728042611949,1.0970492,2389.1,2389.0,9.23523648]
[1728042614358,1.0970492,2389.1,2389.0,7.8164922]
[1728042615178,1.0970492,2389.1,2389.0,3.6306422]
[1728042615339,1.0970492,2389.1,2389.0,0.6306422]
[1728042615980,1.0970492,2389.1,2389.0,0.2108422]
[1728042617369,0.5379,2389.0,2388.9,3.0]
[1728042617565,2.36268854,2389.0,2388.9,3.0]
[1728042621370,4.18609,2388.9,2388.6,0.87397225]
[1728042621737,4.18609,2388.9,2388.5,4.18659]
[1728042621738,0.5379,2388.6,2388.5,4.18672]
[1728042622359,1.82478854,2388.9,2388.5,0.4198]
[1728042622707,1.82478854,2388.9,2388.7,4.18627]
[1728042624545,1.82478854,2388.9,2388.8,4.1862]
[1728042624946,1.82478854,2388.9,2388.7,4.18627]
[1728042625161,1.82478854,2388.9,2388.7,8.37253]
[1728042625387,1.82478854,2388.9,2388.7,4.18626]
[1728042625618,1.82478854,2388.9,2388.8,4.1862]
[1728042627426,0.5379,2388.8,2388.6,4.6062]
[1728042627606,0.5379,2388.8,2388.6,8.79262]
[1728042627814,0.5379,2388.8,2388.7,4.18637]
[1728042628125,0.5379,2388.8,2388.6,4.60633]
[1728042628285,2.36268854,2388.8,2388.7,4.18637]
[1728042630916,2.36268854,2388.8,2388.6,4.60633]
[1728042631123,2.36268854,2388.8,2388.6,8.79276]
[1728042632095,2.36268854,2388.8,2388.7,0.21121445]
[1728042632295,2.36268854,2388.8,2388.7,4.39758445]
[1728042641141,2.36268854,2388.8,2388.7,5.70854283]
[1728042641301,2.36268854,2388.8,2388.7,4.39758445]
[1728042641739,2.36268854,2388.8,2388.7,5.27093282]
[1728042641931,2.36268854,2388.8,2388.7,4.39758445]
[1728042645703,2.36268854,2388.8,2388.7,4.39758445]
[1728042659023,2.36268854,2388.8,2388.7,0.21121445]
[1728042659230,7.20374439,2388.8,2388.7,0.21121445]
[1728042659462,0.5379,2388.8,2388.7,0.21121445]
[1728042659777,2.36268854,2388.8,2388.7,0.2112407]
[1728042661852,2.36268854,2388.8,2388.5,7.18664]
[1728042662166,2.36268854,2388.8,2388.6,0.21140287]
[1728042663534,6.54889854,2388.8,2388.6,0.21140287]
[1728042664948,2.36268854,2388.8,2388.6,0.21140287]
[1728042665872,2.36268854,2388.8,2388.6,4.39791287]
[1728042666844,0.5379,2389.0,2388.7,4.18637]
[1728042667167,1.82478854,2388.9,2388.8,0.21120987]
[1728042667348,1.82478854,2388.9,2388.7,4.18637]
[1728042667547,1.82478854,2388.9,2388.8,0.21120987]
[1728042667749,1.82478854,2388.9,2388.7,4.18637]
[1728042667974,1.82478854,2388.9,2388.8,0.21120987]
[1728042668402,1.82478854,2388.9,2388.7,4.18637]
[1728042668571,1.82478854,2388.9,2388.8,0.21120987]
[1728042668777,1.82478854,2388.9,2388.7,4.18637]
[1728042669083,1.82478854,2388.9,2388.8,0.21120987]
[1728042669462,1.82478854,2388.9,2388.6,4.18652]
[1728042669663,1.82478854,2388.9,2388.8,0.21120987]
[1728042669879,1.82478854,2388.9,2388.7,4.39767242]
[1728042670074,1.82478854,2388.9,2388.8,0.21120987]
[1728042670391,1.82478854,2388.9,2388.7,4.18635]
[1728042670576,1.82478854,2388.9,2388.8,0.21120987]
[1728042670887,0.5379,2389.0,2388.9,4.18602]
[1728042671104,0.5591492,2389.1,2388.9,5.796182]
[1728042671251,0.5591492,2389.1,2389.0,4.18585]
[1728042671650,0.5591492,2389.1,2389.0,4.39677644]
[1728042673676,0.5591492,2389.1,2389.0,0.21092644]
[1728042673887,0.5591492,2389.1,2389.0,4.39677644]
[1728042674185,0.5591492,2389.1,2389.0,9.52857028]
[1728042674490,0.5591492,2389.1,2389.0,11.54375563]
[1728042674700,0.5591492,2389.1,2389.0,11.98136456]
[1728042674894,0.5591492,2389.1,2389.0,13.8061531]
[1728042675056,0.5591492,2389.1,2389.0,12.49519472]
[1728042675252,0.5591492,2389.1,2389.0,14.24313923]
[1728042675600,0.5591492,2389.1,2389.0,13.80503158]
[1728042675808,0.5591492,2389.1,2389.0,14.24313923]
[1728042676088,1.82478854,2390.3,2390.1,4.18382]
[1728042676300,4.1824,2391.0,2389.7,4.18451]
[1728042676301,2.36268854,2390.1,2389.8,0.4198]
[1728042676504,2.36268854,2389.8,2389.7,3.0]
[1728042676802,2.36268854,2389.8,2389.5,4.18488]
[1728042676803,2.36268854,2389.8,2389.5,3.0]
[1728042676950,1.82478854,2389.6,2389.5,3.0]
[1728042678208,1.82478854,2389.6,2389.5,7.18497]
[1728042679275,4.18363,2390.3,2389.7,4.18462]
[1728042679475,1.82478854,2390.0,2389.7,4.18462]
[1728042679875,1.82478854,2389.8,2389.7,4.18462]
[1728042680075,1.82478854,2389.8,2389.6,4.18464]
[1728042681776,1.82478854,2389.8,2389.6,8.36933]
[1728042681972,1.82478854,2389.8,2389.7,4.18462]
[1728042683980,1.82478854,2389.8,2389.6,9.330983]